fUST/lending_fUST_20250524
["ID","MTS","AMOUNT","RATE_DAILY","PERIOD"]
[362175058,1748058633906,-430.0,0.00021917,3]
[362175059,1748058633915,-407.14143394,0.00021917,3]
[362175060,1748058633925,-430.0,0.00021917,3]
[362175061,1748058633935,-430.0,0.00021917,3]
[362175062,1748058633945,-420.25110973,0.00021917,3]
[362175063,1748058633954,-430.0,0.00021917,3]
[362175064,1748058633964,-430.0,0.00021917,3]
[362175065,1748058633974,-415.01360937,0.00021917,3]
[362175066,1748058633983,-430.0,0.00021917,3]
[362175067,1748058633993,-514.31916131,0.00021917,3]
[362175068,1748058634002,-430.0,0.00021917,3]
[362175069,1748058634012,-430.0,0.00021917,3]
[362175070,1748058634021,-430.0,0.00021917,3]
[362175071,1748058634031,-430.0,0.00021917,3]
[362175072,1748058634040,-410.84660584,0.00021917,3]
[362175073,1748058634050,-430.0,0.00021917,3]
[362175074,1748058634059,-405.85091769,0.00021917,3]
[362175075,1748058634069,-430.0,0.00021917,3]
[362175076,1748058634078,-408.96197145,0.00021917,3]
[362175077,1748058634087,-430.0,0.00021917,3]
[362175078,1748058634097,-506.77473999,0.00021917,3]
[362175079,1748058634106,-206.89770392,0.00021917,3]
[362175080,1748058634117,-430.0,0.00021917,3]
[362175081,1748058634127,-406.25032102,0.00021917,3]
[362175082,1748058634136,-430.0,0.00021917,3]
[362175083,1748058634145,-435.73221438,0.00021917,3]
[362175084,1748058634155,-412.00241357,0.00021917,3]
[362175085,1748058634164,-430.0,0.00021917,3]
[362175086,1748058634174,-502.94522609,0.00021917,3]
[362175087,1748058634184,-430.0,0.00021917,3]
[362175088,1748058634193,-430.0,0.00021917,3]
[362175089,1748058634203,-227.96930576,0.00021917,3]
[362175090,1748058634213,-430.0,0.00021917,3]
[362175091,1748058634223,-290.29677932,0.00021917,3]
[362175092,1748058634234,-430.0,0.00021917,3]
[362175093,1748058634244,-434.84683222,0.00021917,3]
[362175094,1748058634254,-430.0,0.00021917,3]
[362175095,1748058634264,-430.0,0.00021917,3]
[362175096,1748058634273,-430.0,0.00021917,3]
[362175097,1748058634283,-430.0,0.00021917,3]
[362175098,1748058634294,-400.0,0.00021917,3]
[362175099,1748058634303,-430.0,0.00021917,3]
[362175100,1748058634312,-500.0,0.00021917,3]
[362175101,1748058634322,-430.0,0.00021917,3]
[362175102,1748058634332,-430.0,0.00021917,3]
[362175103,1748058634342,-430.0,0.00021917,3]
[362175104,1748058634351,-430.0,0.00021917,3]
[362175105,1748058634361,-430.0,0.00021917,3]
[362175106,1748058634370,-430.0,0.00021917,3]
[362175107,1748058634380,-407.60843095,0.00021917,3]
[362175108,1748058634390,-415.93093669,0.00021917,3]
[362175109,1748058634400,-430.0,0.00021917,3]
[362175110,1748058634409,-430.0,0.00021917,3]
[362175111,1748058634418,-400.0,0.00021917,3]
[362175112,1748058634427,-507.08750986,0.00021917,3]
[362175113,1748058634437,-430.0,0.00021917,3]
[362175114,1748058634446,-430.0,0.00021917,3]
[362175115,1748058634456,-430.0,0.00021917,3]
[362175116,1748058634465,-430.0,0.00021917,3]
[362175117,1748058634475,-400.0,0.00021917,3]
[362175118,1748058634486,-430.0,0.00021917,3]
[362175119,1748058634496,-500.0,0.00021917,3]
[362175120,1748058634505,-500.0,0.00021917,3]
[362175121,1748058634515,-410.17257804,0.00021917,3]
[362175122,1748058634526,-430.0,0.00021917,3]
[362175123,1748058634536,-430.0,0.00021917,3]
[362175124,1748058634547,-430.0,0.00021917,3]
[362175125,1748058634557,-422.69410625,0.00021917,3]
[362175126,1748058634567,-430.0,0.00021917,3]
[362175127,1748058634578,-430.0,0.00021917,3]
[362175128,1748058634588,-430.0,0.00021917,3]
[362175129,1748058634598,-430.0,0.00021917,3]
[362175130,1748058634609,-430.0,0.00021917,3]
[362175131,1748058634618,-430.0,0.00021917,3]
[362175132,1748058634628,-430.0,0.00021917,3]
[362175133,1748058634640,-430.0,0.00021917,3]
[362175134,1748058634652,-430.0,0.00021917,3]
[362175135,1748058634663,-430.0,0.00021917,3]
[362175136,1748058634676,-430.0,0.00021917,3]
[362175137,1748058634686,-430.0,0.00021917,3]
[362175138,1748058634695,-424.78163554,0.00021917,3]
[362175139,1748058634706,-422.9040535,0.00021917,3]
[362175140,1748058634715,-430.0,0.00021917,3]
[362175141,1748058634725,-430.0,0.00021917,3]
[362175142,1748058634735,-430.0,0.00021917,3]
[362175143,1748058634746,-430.0,0.00021917,3]
[362175144,1748058634756,-419.05052355,0.00021917,3]
[362175145,1748058634766,-430.0,0.00021917,3]
[362175146,1748058634778,-430.0,0.00021917,3]
[362175147,1748058634787,-430.0,0.00021917,3]
[362175148,1748058634797,-400.0,0.00021917,3]
[362175149,1748058634807,-430.0,0.00021917,3]
[362175150,1748058634816,-236.76233821,0.00021917,3]
[362175151,1748058634825,-408.58506264,0.00021917,3]
[362175152,1748058634834,-430.0,0.00021917,3]
[362175153,1748058634844,-430.0,0.00021917,3]
[362175154,1748058634853,-421.958281,0.00021917,3]
[362175155,1748058634863,-430.0,0.00021917,3]
[362175156,1748058634873,-430.0,0.00021917,3]
[362175157,1748058634882,-430.0,0.00021917,3]
[362175158,1748058634891,-430.0,0.00021917,3]
[362175159,1748058634900,-430.0,0.00021917,3]
[362175160,1748058634910,-430.0,0.00021917,3]
[362175161,1748058634920,-430.0,0.00021917,3]
[362175162,1748058634929,-430.0,0.00021917,3]
[362175163,1748058634942,-430.0,0.00021917,3]
[362175164,1748058634952,-412.13238112,0.00021917,3]
[362175165,1748058634961,-438.16165934,0.00021917,3]
[362175166,1748058634971,-430.0,0.00021917,3]
[362175167,1748058634980,-430.0,0.00021917,3]
[362175168,1748058634989,-416.16121203,0.00021917,3]
[362175169,1748058634998,-229.92448833,0.00021917,3]
[362175170,1748058635007,-430.0,0.00021917,3]
[362175171,1748058635017,-430.0,0.00021917,3]
[362175172,1748058635026,-430.0,0.00021917,3]
[362175173,1748058635036,-428.39914747,0.00021917,3]
[362175174,1748058635045,-434.06101262,0.00021917,3]
[362175175,1748058635065,-430.0,0.00021917,3]
[362175176,1748058635075,-563.96996716,0.00021917,3]
[362175177,1748058635085,-237.48749193,0.00021917,3]
[362175178,1748058635094,-430.0,0.00021917,3]
[362175179,1748058635104,-430.0,0.00021917,3]
[362175180,1748058635114,-430.0,0.00021917,3]
[362175181,1748058635125,-430.0,0.00021917,3]
[362175182,1748058635135,-430.0,0.00021917,3]
[362175183,1748058635144,-433.98261765,0.00021917,3]
[362175184,1748058635153,-432.32348423,0.00021917,3]
[362175185,1748058635162,-410.29835819,0.00021917,3]
[362175186,1748058635171,-430.0,0.00021917,2]
[362175187,1748058635181,-537.10025235,0.00021917,3]
[362175188,1748058635192,-430.0,0.00021917,3]
[362175189,1748058635202,-437.9163353,0.00021917,3]
[362175190,1748058635211,-153.86057168,0.00021917,3]
[362175191,1748058635220,-430.0,0.00021917,3]
[362175192,1748058635230,-430.0,0.00021917,3]
[362175193,1748058635240,-400.0,0.00021917,3]
[362175194,1748058635249,-863.62,0.00021917,3]
[362175195,1748058635258,-424.18148356,0.00021917,3]
[362175196,1748058635267,-413.35456901,0.00021917,3]
[362175197,1748058635277,-400.0,0.00021917,3]
[362175198,1748058635286,-430.0,0.00021917,3]
[362175199,1748058635295,-430.0,0.00021917,3]
[362175200,1748058635305,-430.0,0.00021917,3]
[362175201,1748058635314,-430.0,0.00021917,3]
[362175202,1748058635323,-430.0,0.00021917,3]
[362175203,1748058635333,-430.0,0.00021917,3]
[362175204,1748058635342,-430.0,0.00021917,3]
[362175205,1748058635352,-430.0,0.00021917,3]
[362175206,1748058635361,-430.0,0.00021917,3]
[362175207,1748058635370,-430.0,0.00021917,3]
[362175208,1748058635380,-402.76362662,0.00021917,3]
[362175209,1748058635389,-411.3580064,0.00021917,3]
[362175210,1748058635399,-430.0,0.00021917,3]
[362175211,1748058635408,-430.0,0.00021917,3]
[362175212,1748058635417,-430.0,0.00021917,3]
[362175213,1748058635427,-407.07324399,0.00021917,3]
[362175214,1748058635437,-403.18341833,0.00021917,3]
[362175215,1748058635448,-245.53380272,0.00021917,3]
[362175216,1748058635457,-430.0,0.00021917,3]
[362175217,1748058635467,-444.01351486,0.00021917,3]
[362175218,1748058635476,-423.92243033,0.00021917,3]
[362175219,1748058635486,-1094.98,0.00021917,3]
[362175220,1748058635495,-430.0,0.00021917,3]
[362175221,1748058635504,-407.50240879,0.00021917,3]
[362175222,1748058635514,-430.0,0.00021917,3]
[362175223,1748058635524,-898.11,0.00021917,3]
[362175224,1748058635534,-415.92763111,0.00021917,3]
[362175225,1748058635543,-403.77891891,0.00021917,3]
[362175226,1748058635553,-430.0,0.00021917,3]
[362175227,1748058635562,-430.0,0.00021917,3]
[362175228,1748058635571,-430.0,0.00021917,3]
[362175229,1748058635581,-509.59964797,0.00021917,3]
[362175230,1748058635591,-440.98008985,0.00021917,3]
[362175231,1748058635600,-430.0,0.00021917,3]
[362175232,1748058635610,-430.0,0.00021917,3]
[362175233,1748058635620,-407.09814609,0.00021917,3]
[362175234,1748058635629,-404.27124873,0.00021917,3]
[362175235,1748058635639,-179.30064861,0.00021917,3]
[362175236,1748058635648,-430.0,0.00021917,3]
[362175237,1748058635663,-505.61275569,0.00021917,3]
[362175238,1748058635673,-1912.75,0.00021917,3]
[362175239,1748058635683,-430.0,0.00021917,3]
[362175240,1748058635693,-505.1465333,0.00021917,3]
[362175241,1748058635703,-335.1560183,0.00021917,3]
[362175242,1748058635713,-379.17003604,0.00021917,3]
[362175243,1748058635722,-873.59,0.00021917,3]
[362175244,1748058635732,-430.0,0.00021917,3]
[362175245,1748058635745,-430.0,0.00021917,3]
[362175246,1748058635755,-430.0,0.00021917,3]
[362175247,1748058635765,-430.0,0.00021917,3]
[362175248,1748058635774,-430.0,0.00021917,3]
[362175249,1748058635784,-430.0,0.00021917,3]
[362175250,1748058635794,-430.0,0.00021917,3]
[362175251,1748058635804,-430.0,0.00021917,3]
[362175252,1748058635813,-430.0,0.00021917,3]
[362175253,1748058635822,-430.0,0.00021917,3]
[362175254,1748058635833,-430.0,0.00021917,3]
[362175255,1748058635842,-386.59409681,0.00021917,3]
[362175256,1748058635851,-510.29255542,0.00021917,3]
[362175257,1748058635861,-430.0,0.00021917,3]
[362175258,1748058635870,-430.0,0.00021917,3]
[362175259,1748058635880,-400.0,0.00021917,3]
[362175260,1748058635890,-430.0,0.00021917,3]
[362175261,1748058635899,-430.0,0.00021917,3]
[362175262,1748058635909,-430.0,0.00021917,3]
[362175263,1748058635918,-411.64531926,0.00021917,3]
[362175264,1748058635928,-430.0,0.00021917,3]
[362175265,1748058635937,-420.82576956,0.00021917,3]
[362175266,1748058635946,-430.0,0.00021917,3]
[362175267,1748058635955,-430.0,0.00021917,3]
[362175268,1748058635964,-430.0,0.00021917,3]
[362175269,1748058635975,-1656.33,0.00021917,3]
[362175270,1748058635985,-516.50779827,0.00021917,3]
[362175271,1748058635994,-402.08586404,0.00021917,3]
[362175272,1748058636004,-504.24243056,0.00021917,3]
[362175273,1748058636014,-430.0,0.00021917,3]
[362175274,1748058636023,-430.0,0.00021917,3]
[362175275,1748058636034,-430.0,0.00021917,3]
[362175276,1748058636044,-430.0,0.00021917,3]
[362175277,1748058636054,-430.0,0.00021917,3]
[362175278,1748058636189,-430.0,0.00021917,3]
[362175279,1748058636200,-517.01784821,0.00021917,3]
[362175280,1748058636211,-430.0,0.00021917,3]
[362175281,1748058636221,-415.64287468,0.00021917,3]
[362175282,1748058636231,-430.0,0.00021917,3]
[362175283,1748058636241,-660.67,0.00021917,3]
[362175284,1748058636252,-400.0,0.00021917,3]
[362175285,1748058636262,-414.81091715,0.00021917,3]
[362175286,1748058636271,-430.0,0.00021917,3]
[362175287,1748058636281,-430.0,0.00021917,3]
[362175288,1748058636292,-430.0,0.00021917,3]
[362175289,1748058636302,-431.08486345,0.00021917,3]
[362175290,1748058636312,-508.38616781,0.00021917,3]
[362175291,1748058636322,-400.0,0.00021917,3]
[362175292,1748058636333,-462.0,0.00021917,3]
[362175293,1748058636343,-468.87,0.00021917,3]
[362175294,1748058636352,-529.95147708,0.00021917,3]
[362175295,1748058636363,-430.0,0.00021917,3]
[362175296,1748058636373,-430.0,0.00021917,3]
[362175297,1748058636383,-149.95763871,0.00021917,3]
[362175298,1748058636404,-354.62859743,0.00021917,3]
[362175299,1748058636414,-402.19344007,0.00021917,3]
[362175300,1748058636423,-430.0,0.00021917,3]
[362175301,1748058636433,-405.47137417,0.00021917,3]
[362175302,1748058636443,-430.0,0.00021917,3]
[362175303,1748058636452,-430.0,0.00021917,3]
[362175304,1748058636462,-430.0,0.00021917,3]
[362175305,1748058636473,-430.0,0.00021917,3]
[362175306,1748058636484,-430.0,0.00021917,3]
[362175307,1748058636495,-507.73136039,0.00021917,3]
[362175308,1748058636504,-400.0,0.00021917,3]
[362175309,1748058636514,-404.64354736,0.00021917,3]
[362175310,1748058636525,-505.56243742,0.00021917,3]
[362175311,1748058636536,-914.26,0.00021917,3]
[362175312,1748058636545,-376.38592065,0.00021917,3]
[362175313,1748058636555,-402.93463033,0.00021917,3]
[362175314,1748058636566,-430.0,0.00021917,3]
[362175315,1748058636576,-405.03745188,0.00021917,3]
[362175316,1748058636586,-501.90852557,0.00021917,3]
[362175317,1748058636596,-430.0,0.00021917,3]
[362175318,1748058636606,-430.0,0.00021917,3]
[362175319,1748058636616,-430.0,0.00021917,3]
[362175320,1748058636625,-404.20652269,0.00021917,3]
[362175321,1748058636635,-504.9152716,0.00021917,3]
[362175322,1748058636645,-439.60832104,0.00021917,3]
[362175323,1748058636654,-430.0,0.00021917,3]
[362175324,1748058636667,-430.0,0.00021917,3]
[362175325,1748058636676,-445.67964488,0.00021917,3]
[362175326,1748058636686,-430.0,0.00021917,3]
[362175327,1748058636697,-903.22114868,0.00021917,3]
[362175328,1748058636715,-1288.32885132,0.00021917,3]
[362175329,1748058636725,-430.0,0.00021917,3]
[362175330,1748058636735,-400.0,0.00021917,3]
[362175331,1748058636746,-714.12,0.00021917,3]
[362175332,1748058636756,-508.090556,0.00021917,3]
[362175333,1748058636766,-430.0,0.00021917,3]
[362175334,1748058636783,-507.52922009,0.00021917,3]
[362175335,1748058636795,-430.0,0.00021917,3]
[362175336,1748058636805,-449.12365192,0.00021917,3]
[362175481,1748058640304,-51.01891396,0.00021917,3]
[362175489,1748058643022,-5.11665001,0.00021917,3]
[362175490,1748058643033,-430.0,0.00021917,3]
[362175491,1748058643042,-400.0,0.00021917,3]
[362175492,1748058643052,-403.7200763,0.00021917,3]
[362175493,1748058643062,-550.34076166,0.00021917,3]
[362175494,1748058643071,-430.0,0.00021917,3]
[362175495,1748058643081,-430.0,0.00021917,3]
[362175496,1748058643091,-402.86794305,0.00021917,3]
[362175497,1748058643102,-430.0,0.00021917,3]
[362175498,1748058643112,-506.32541308,0.00021917,3]
[362175499,1748058643122,-530.95525134,0.00021917,3]
[362175500,1748058643146,-430.0,0.00021917,3]
[362175501,1748058643157,-400.0,0.00021917,3]
[362175502,1748058643167,-430.0,0.00021917,3]
[362175503,1748058643177,-401.61404697,0.00021917,3]
[362175504,1748058643188,-405.30472598,0.00021917,3]
[362175505,1748058643198,-430.0,0.00021917,3]
[362175506,1748058643210,-400.0,0.00021917,3]
[362175507,1748058643220,-430.0,0.00021917,3]
[362175508,1748058643232,-430.0,0.00021917,3]
[362175509,1748058643243,-430.0,0.00021917,3]
[362175510,1748058643252,-402.56902387,0.00021917,3]
[362175511,1748058643262,-400.85672942,0.00021917,3]
[362175512,1748058643272,-558.48076791,0.00021917,3]
[362175513,1748058643282,-430.0,0.00021917,3]
[362175514,1748058643292,-5000.0,0.00022,2]
[362175515,1748058643303,-6228.08847992,0.00022083,2]
[362175516,1748058643313,-296.43,0.00022179,10]
[362175517,1748058643325,-500.0,0.00022188,3]
[362175518,1748058643335,-500.0,0.0002219,3]
[362175519,1748058643346,-500.0,0.0002219,3]
[362175520,1748058643356,-430.0,0.00022191,3]
[362175521,1748058643366,-430.0,0.00022191,3]
[362175522,1748058643377,-430.0,0.00022191,3]
[362175523,1748058643387,-500.0,0.00022191,3]
[362175524,1748058643398,-430.0,0.00022191,3]
[362175525,1748058643407,-430.0,0.00022191,3]
[362175526,1748058643417,-430.0,0.00022191,3]
[362175527,1748058643427,-430.0,0.00022191,3]
[362175528,1748058643437,-430.0,0.00022191,3]
[362175529,1748058643447,-430.0,0.00022191,3]
[362175530,1748058643458,-430.0,0.00022191,3]
[362175531,1748058643469,-430.0,0.00022191,3]
[362175532,1748058643479,-430.0,0.00022191,3]
[362175533,1748058643490,-430.0,0.00022191,3]
[362175534,1748058643557,-250.28251173,0.00022191,3]
[362175535,1748058643568,-430.0,0.00022191,2]
[362175536,1748058643577,-430.0,0.00022191,3]
[362175537,1748058643588,-863.62,0.00022191,3]
[362175538,1748058643597,-430.0,0.00022191,3]
[362175539,1748058643607,-1094.98,0.00022191,3]
[362175540,1748058643617,-430.0,0.00022191,3]
[362175541,1748058643627,-898.11,0.00022191,3]
[362175542,1748058643637,-430.0,0.00022191,3]
[362175543,1748058643647,-430.0,0.00022191,3]
[362175544,1748058643657,-1912.75,0.00022191,3]
[362175545,1748058643669,-873.59,0.00022191,3]
[362175546,1748058643678,-430.0,0.00022191,3]
[362175547,1748058643688,-430.0,0.00022191,3]
[362175548,1748058643698,-430.0,0.00022191,3]
[362175549,1748058643709,-430.0,0.00022191,3]
[362175550,1748058643719,-1656.33,0.00022191,3]
[362175551,1748058643734,-660.67,0.00022191,3]
[362175552,1748058643745,-468.87,0.00022191,3]
[362175553,1748058643755,-430.0,0.00022191,3]
[362175554,1748058643764,-914.26,0.00022191,3]
[362175555,1748058643774,-2191.55,0.00022191,3]
[362175556,1748058643784,-714.12,0.00022191,3]
[362175557,1748058643795,-430.0,0.00022191,3]
[362175558,1748058643804,-430.0,0.00022191,3]
[362175559,1748058643814,-430.0,0.00022191,3]
[362175560,1748058643824,-423.77912875,0.00022259,3]
[362175561,1748058643834,-500.0,0.00022332,3]
[362175562,1748058643844,-503.02041151,0.00022436,2]
[362175563,1748058643854,-247.03,0.00022455,10]
[362175564,1748058643863,-500.0,0.00022463,3]
[362175565,1748058643873,-500.0,0.00022464,3]
[362175566,1748058643883,-430.0,0.00022465,3]
[362175567,1748058643892,-371.97892515,0.00022465,3]
[362175568,1748058643902,-500.0,0.00022465,3]
[362175569,1748058643912,-430.0,0.00022465,3]
[362175570,1748058643921,-430.0,0.00022465,3]
[362175571,1748058643932,-430.0,0.00022465,3]
[362175572,1748058643942,-430.0,0.00022465,3]
[362175573,1748058643951,-430.0,0.00022465,3]
[362175574,1748058643962,-430.0,0.00022465,3]
[362175575,1748058643972,-430.0,0.00022465,3]
[362175576,1748058643982,-430.0,0.00022465,3]
[362175577,1748058643992,-430.0,0.00022465,3]
[362175578,1748058644002,-430.0,0.00022465,2]
[362175579,1748058644012,-430.0,0.00022465,3]
[362175580,1748058644022,-863.62,0.00022465,3]
[362175581,1748058644031,-430.0,0.00022465,3]
[362175582,1748058644041,-1094.98,0.00022465,3]
[362175583,1748058644052,-430.0,0.00022465,3]
[362175584,1748058644061,-898.11,0.00022465,3]
[362175585,1748058644071,-339.15497749,0.00022465,3]
[362175586,1748058644081,-430.0,0.00022465,3]
[362175587,1748058644091,-1912.75,0.00022465,3]
[362175588,1748058644101,-873.59,0.00022465,3]
[362175589,1748058644111,-430.0,0.00022465,3]
[362175590,1748058644120,-203.24362011,0.00022465,3]
[362175591,1748058644130,-342.42,0.00022465,3]
[362175592,1748058644139,-430.0,0.00022465,3]
[362175593,1748058644149,-1656.33,0.00022465,3]
[362175594,1748058644161,-660.67,0.00022465,3]
[362175595,1748058644171,-468.87,0.00022465,3]
[362175596,1748058644180,-430.0,0.00022465,3]
[362175597,1748058644190,-914.26,0.00022465,3]
[362175598,1748058644199,-2191.55,0.00022465,3]
[362175599,1748058644209,-714.12,0.00022465,3]
[362175600,1748058644218,-430.0,0.00022465,3]
[362175601,1748058644228,-430.0,0.00022465,3]
[362175602,1748058644237,-1409.76826489,0.0002258,2]
[362175603,1748058644246,-500.0,0.00022676,2]
[362175604,1748058644255,-160.0,0.00022709,2]
[362175605,1748058644265,-500.0,0.00022737,3]
[362175606,1748058644274,-538.0937288,0.00022738,3]
[362175607,1748058644283,-430.0,0.00022739,3]
[362175608,1748058644292,-500.0,0.00022739,3]
[362175609,1748058644302,-430.0,0.00022739,3]
[362175610,1748058644311,-430.0,0.00022739,3]
[362175611,1748058644321,-430.0,0.00022739,3]
[362175612,1748058644330,-430.0,0.00022739,3]
[362175613,1748058644341,-430.0,0.00022739,3]
[362175614,1748058644353,-430.0,0.00022739,3]
[362175615,1748058644363,-533.51568103,0.00022739,3]
[362175616,1748058644373,-430.0,0.00022739,3]
[362175617,1748058644384,-430.0,0.00022739,3]
[362175618,1748058644394,-430.0,0.00022739,2]
[362175619,1748058644404,-430.0,0.00022739,3]
[362175620,1748058644415,-863.62,0.00022739,3]
[362175621,1748058644425,-430.0,0.00022739,3]
[362175622,1748058644434,-430.0,0.00022739,3]
[362175623,1748058644445,-1094.98,0.00022739,3]
[362175624,1748058644455,-898.11,0.00022739,3]
[362175625,1748058644464,-430.0,0.00022739,3]
[362175626,1748058644474,-1912.75,0.00022739,3]
[362175627,1748058644483,-873.59,0.00022739,3]
[362175628,1748058644493,-430.0,0.00022739,3]
[362175629,1748058644502,-1656.33,0.00022739,3]
[362175630,1748058644512,-430.0,0.00022739,3]
[362175631,1748058644521,-660.67,0.00022739,3]
[362175632,1748058644531,-468.87,0.00022739,3]
[362175633,1748058644541,-430.0,0.00022739,3]
[362175634,1748058644551,-914.26,0.00022739,3]
[362175635,1748058644560,-2191.55,0.00022739,3]
[362175636,1748058644570,-714.12,0.00022739,3]
[362175637,1748058644580,-430.0,0.00022739,3]
[362175638,1748058644590,-430.0,0.00022739,3]
[362175639,1748058644600,-726.15151496,0.00022949,2]
[362175640,1748058644611,-500.0,0.00023011,3]
[362175641,1748058644620,-430.0,0.00023013,3]
[362175642,1748058644630,-500.0,0.00023013,3]
[362175643,1748058644640,-386.8658236,0.00023013,3]
[362175644,1748058644649,-430.0,0.00023013,3]
[362175645,1748058644662,-430.0,0.00023013,3]
[362175646,1748058644672,-430.0,0.00023013,3]
[362175647,1748058644682,-430.0,0.00023013,3]
[362175648,1748058644692,-430.0,0.00023013,3]
[362175649,1748058644703,-430.0,0.00023013,3]
[362175650,1748058644714,-430.0,0.00023013,3]
[362175651,1748058644723,-430.0,0.00023013,2]
[362175652,1748058644733,-430.0,0.00023013,3]
[362175653,1748058644743,-863.62,0.00023013,3]
[362175654,1748058644753,-430.0,0.00023013,3]
[362175655,1748058644763,-430.0,0.00023013,3]
[362175656,1748058644772,-1094.98,0.00023013,3]
[362175657,1748058644782,-898.11,0.00023013,3]
[362175658,1748058644793,-430.0,0.00023013,3]
[362175659,1748058644803,-1912.75,0.00023013,3]
[362175660,1748058644812,-873.59,0.00023013,3]
[362175661,1748058644821,-430.0,0.00023013,3]
[362175662,1748058644831,-1656.33,0.00023013,3]
[362175663,1748058644841,-430.0,0.00023013,3]
[362175664,1748058644852,-660.67,0.00023013,3]
[362175665,1748058644861,-468.87,0.00023013,3]
[362175666,1748058644871,-430.0,0.00023013,3]
[362175667,1748058644881,-914.26,0.00023013,3]
[362175668,1748058644890,-2191.55,0.00023013,3]
[362175669,1748058644900,-714.12,0.00023013,3]
[362175670,1748058644909,-430.0,0.00023013,3]
[362175671,1748058644919,-430.0,0.00023013,3]
[362175672,1748058644929,-5159.03,0.00023073,2]
[362175673,1748058644939,-500.0,0.00023082,2]
[362175674,1748058644949,-207.4,0.00023107,2]
[362175675,1748058644959,-500.0,0.00023284,3]
[362175676,1748058644969,-500.0,0.00023286,3]
[362175677,1748058644978,-367.20007626,0.00023287,3]
[362175678,1748058644987,-500.0,0.00023287,3]
[362175679,1748058644997,-245.84086832,0.00023287,3]
[362175680,1748058645007,-430.0,0.00023287,3]
[362175681,1748058645017,-430.0,0.00023287,3]
[362175682,1748058645026,-430.0,0.00023287,3]
[362175683,1748058645036,-430.0,0.00023287,3]
[362175684,1748058645046,-430.0,0.00023287,3]
[362175685,1748058645056,-430.0,0.00023287,3]
[362175686,1748058645065,-430.0,0.00023287,2]
[362175687,1748058645075,-430.0,0.00023287,3]
[362175688,1748058645085,-863.62,0.00023287,3]
[362175689,1748058645094,-430.0,0.00023287,3]
[362175690,1748058645104,-430.0,0.00023287,3]
[362175691,1748058645115,-1094.98,0.00023287,3]
[362175692,1748058645125,-898.11,0.00023287,3]
[362175693,1748058645135,-430.0,0.00023287,3]
[362175694,1748058645145,-1912.75,0.00023287,3]
[362175695,1748058645155,-873.59,0.00023287,3]
[362175696,1748058645165,-430.0,0.00023287,3]
[362175697,1748058645174,-4889.01,0.00023287,2]
[362175698,1748058645184,-1656.33,0.00023287,3]
[362175699,1748058645195,-430.0,0.00023287,3]
[362175700,1748058645205,-660.67,0.00023287,3]
[362175701,1748058645215,-468.87,0.00023287,3]
[362175702,1748058645224,-430.0,0.00023287,3]
[362175703,1748058645235,-914.26,0.00023287,3]
[362175704,1748058645244,-2191.55,0.00023287,3]
[362175705,1748058645254,-714.12,0.00023287,3]
[362175706,1748058645264,-430.0,0.00023287,3]
[362175707,1748058645273,-430.0,0.00023287,3]
[362175708,1748058645283,-158.2393474,0.0002337,2]